bitfinex-derivatives/quotes_BNBF0:USTF0_20250708
["timestamp","ask_amount","ask_price","bid_price","bid_amount"]
[1751968893703,0.26357746,660.46,659.8,2.27180874]
[1751968894307,0.26357746,660.46,659.78,2.27180874]
[1751968896506,0.26357746,660.46,659.81,2.27180874]
[1751968897104,0.26357746,660.46,659.82,2.27180874]
[1751968898806,0.26357746,660.46,659.76,2.27180874]
[1751968899009,1.70027813,660.43,659.7,2.27180874]
[1751968899206,1.70027813,660.44,659.68,2.27180874]
[1751968900009,1.70027813,660.44,659.69,2.27180874]
[1751968900306,1.70027813,660.44,659.68,2.27180874]
[1751968901206,1.70027813,660.44,658.78,5.67952186]
[1751968901207,1.70027813,660.44,659.67,2.27180874]
[1751968901406,1.70027813,660.45,659.67,2.27180874]
[1751968902210,1.70027813,660.45,659.69,2.27180874]
[1751968902410,1.70027813,660.44,659.7,2.27180874]
[1751968903210,1.70027813,660.44,659.71,2.27180874]
[1751968904209,1.70027813,660.44,659.7,2.27180874]
[1751968904812,1.70027813,660.44,659.71,2.27180874]
[1751968905210,1.70027813,660.45,659.68,2.27180874]
[1751968905508,1.96385559,660.46,659.67,2.27180874]
[1751968906415,1.96385559,660.46,659.66,2.27180874]
[1751968906713,1.96385559,660.46,659.68,2.27180874]
[1751968907408,1.70027813,660.45,659.7,2.27180874]
[1751968907612,1.70027813,660.45,659.69,2.27180874]
[1751968908309,1.96385559,660.46,659.68,2.27180874]
[1751968909114,1.70027813,660.45,659.69,2.27180874]
[1751968909312,1.70027813,660.45,659.7,2.27180874]
[1751968911816,1.96385559,660.46,659.69,2.27180874]
[1751968912115,0.26357746,660.46,659.67,2.27180874]
[1751968913618,0.26357746,660.46,659.65,2.27180874]
[1751968913822,0.26357746,660.46,659.59,2.27180874]
[1751968914422,0.26357746,660.46,659.6,2.27180874]
[1751968914823,0.26357746,660.46,659.61,2.27180874]
[1751968915523,0.26357746,660.46,659.59,2.27180874]
[1751968916120,0.26357746,660.46,659.6,2.27180874]
[1751968917621,0.26357746,660.46,659.58,2.27180874]
[1751968918324,0.26357746,660.46,659.57,2.27180874]
[1751968919025,0.26357746,660.46,659.55,2.27180874]
[1751968919219,0.26357746,660.46,659.56,2.27180874]
[1751968920225,0.26357746,660.46,659.54,2.27180874]
[1751968921022,0.26357746,660.46,659.53,2.27180874]
[1751968922328,0.26357746,660.46,659.57,2.27180874]
[1751968924729,0.26357746,660.46,659.56,2.27180874]
[1751968925326,0.26357746,660.46,659.57,2.27180874]
[1751968925625,0.26357746,660.46,659.55,2.27180874]
[1751968926825,0.26357746,660.46,659.56,2.27180874]
[1751968928130,0.26357746,660.46,659.57,2.27180874]
[1751968928330,0.26357746,660.46,659.59,2.27180874]
[1751968928630,0.26357746,660.46,659.56,2.27180874]
[1751968930726,0.26357746,660.46,659.57,2.27180874]
[1751968930930,1.96385559,660.46,659.57,2.27180874]
[1751968931332,1.96385559,660.46,659.59,2.27180874]
[1751968932026,1.70027813,660.45,659.59,2.27180874]
[1751968933226,1.70027813,660.45,659.6,2.27180874]
[1751968934330,1.70027813,660.43,659.56,2.27180874]
[1751968934532,1.70027813,660.43,659.57,2.27180874]
[1751968934932,1.70027813,660.43,659.56,2.27180874]
[1751968936131,1.70027813,660.43,659.57,2.27180874]
[1751968937433,1.70027813,660.43,659.56,2.27180874]
[1751968938234,1.70027813,660.43,659.58,2.27180874]
[1751968939033,1.70027813,660.44,659.56,2.27180874]
[1751968939236,1.70027813,660.45,659.52,2.27180874]
[1751968939538,1.70027813,660.44,659.54,2.27180874]
[1751968940235,1.70027813,660.45,659.52,2.27180874]
[1751968940434,1.70027813,660.24,659.07,2.27180874]
[1751968940639,1.70027813,660.27,659.05,2.27180874]
[1751968941139,1.70027813,660.08,659.23,2.27180874]
[1751968941341,1.70027813,660.1,659.19,2.27180874]
[1751968941740,1.70027813,660.11,659.18,2.27180874]
[1751968942139,1.70027813,660.1,659.19,2.27180874]
[1751968942337,1.70027813,660.19,659.01,2.27180874]
[1751968942536,1.70027813,660.29,659.06,2.27180874]
[1751968943540,1.70027813,660.29,659.05,2.27180874]
[1751968944338,1.70027813,660.3,659.05,2.27180874]
[1751968944542,1.70027813,660.3,659.04,2.27180874]
[1751968945040,1.70027813,660.3,659.03,2.27180874]
[1751968945239,1.70027813,660.26,659.05,2.27180874]
[1751968945644,1.70027813,660.26,658.83,3.40771311]
[1751968945645,1.70027813,660.22,659.04,2.27180874]
[1751968946540,1.70027813,660.22,659.0,2.27180874]
[1751968946941,1.70027813,660.23,658.96,2.27180874]
[1751968947646,1.70027813,660.24,658.95,2.27180874]
[1751968948644,1.70027813,660.23,658.95,2.27180874]
[1751968949042,1.70027813,660.2,659.02,2.27180874]
[1751968949242,1.70027813,660.21,659.0,2.27180874]
[1751968949446,1.70027813,660.21,658.97,2.27180874]
[1751968950344,1.70027813,660.22,658.93,2.27180874]
[1751968950548,1.70027813,660.21,658.9,2.27180874]
[1751968950749,1.70027813,660.03,658.91,2.27180874]
[1751968951044,1.70027813,660.03,658.88,2.27180874]
[1751968951449,1.70027813,660.04,658.85,2.27180874]
[1751968952246,1.70027813,660.05,658.83,2.27180874]
[1751968952446,1.70027813,660.06,658.79,2.27180874]
[1751968952750,1.70027813,660.06,658.8,2.27180874]
[1751968953548,1.70027813,660.08,658.79,2.27180874]
[1751968953845,1.70027813,660.08,658.75,2.27180874]
[1751968954548,1.70027813,660.09,658.72,2.27180874]
[1751968954749,1.70027813,660.11,658.69,2.27180874]
[1751968955447,1.70027813,660.12,658.67,2.27180874]
[1751968955647,1.70027813,660.12,658.45,3.40771311]
[1751968955648,1.70027813,660.12,658.66,2.27180874]
[1751968956448,1.70027813,660.13,658.64,2.27180874]
[1751968956948,1.70027813,660.13,658.65,2.27180874]
[1751968957448,1.70027813,660.12,658.65,2.27180874]
[1751968958452,0.26385824,659.81,658.64,2.27180874]
[1751968958650,0.26385824,659.81,658.63,2.27180874]
[1751968958856,0.26385824,659.81,658.65,2.27180874]
[1751968959051,0.26385824,659.81,658.67,2.27180874]
[1751968959551,0.26385824,659.81,658.66,2.27180874]
[1751968959749,0.26385824,659.81,658.67,2.27180874]
[1751968959954,0.26385824,659.81,658.69,2.27180874]
[1751968960156,0.26385824,659.81,658.63,2.27180874]
[1751968960555,0.26385824,659.81,658.62,2.27180874]
[1751968960755,0.26385824,659.81,658.63,2.27180874]
[1751968961353,0.26385824,659.81,658.65,2.27180874]
[1751968961556,0.26385824,659.81,658.64,2.27180874]
[1751968962253,0.26385824,659.81,658.66,2.27180874]
[1751968962457,0.26385824,659.81,658.63,2.27180874]
[1751968962655,0.26385824,659.81,658.61,2.27180874]
[1751968963156,0.26385824,659.81,658.58,2.27180874]
[1751968963551,0.26385824,659.81,658.39,3.40771311]
[1751968963552,0.26385824,659.81,658.57,2.27180874]
[1751968963957,0.26385824,659.81,658.56,2.27180874]
[1751968964557,0.26385824,659.81,658.57,2.27180874]
[1751968964757,0.26385824,659.81,658.56,2.27180874]
[1751968965361,0.26385824,659.81,658.47,2.27180874]
[1751968966563,0.26385824,659.81,658.46,2.27180874]
[1751968967861,0.26385824,659.81,658.45,2.27180874]
[1751968968465,0.26385824,659.81,658.44,2.27180874]
[1751968969462,0.26385824,659.81,658.48,2.27180874]
[1751968970061,0.26385824,659.81,658.49,2.27180874]
[1751968970866,0.26385824,659.81,658.5,2.27180874]
[1751968971065,0.26385824,659.81,658.49,2.27180874]
[1751968971263,0.26385824,659.81,658.27,3.40771311]
[1751968971264,0.26385824,659.81,658.5,2.27180874]
[1751968972567,0.26385824,659.81,658.49,2.27180874]
[1751968973171,0.26385824,659.81,658.5,2.27180874]
[1751968973469,0.26385824,659.81,658.55,2.27180874]
[1751968975367,0.26385824,659.81,658.56,2.27180874]
[1751968975766,0.26385824,659.81,658.57,2.27180874]
[1751968976364,0.26385824,659.81,658.59,2.27180874]
[1751968976766,0.26385824,659.81,658.57,2.27180874]
[1751968976969,0.26385824,659.81,658.56,2.27180874]
[1751968977167,0.26385824,659.81,658.57,2.27180874]
[1751968977970,0.26385824,659.81,658.56,2.27180874]
[1751968978373,0.26385824,659.81,658.57,2.27180874]
[1751968978875,0.26385824,659.81,658.58,2.27180874]
[1751968979075,0.26385824,659.81,658.59,2.27180874]
[1751968979473,0.26385824,659.81,658.58,2.27180874]
[1751968979876,0.26385824,659.81,658.6,2.27180874]
[1751968980475,0.26385824,659.81,658.58,2.27180874]
[1751968980878,0.26385824,659.81,658.59,2.27180874]
[1751968981081,0.26385824,659.81,658.61,2.27180874]
[1751968981277,0.26385824,659.81,658.63,2.27180874]
[1751968982077,0.26385824,659.81,658.65,2.27180874]
[1751968982580,0.26385824,659.81,658.64,2.27180874]
[1751968982978,0.26385824,659.81,658.62,2.27180874]
[1751968983482,0.26385824,659.81,658.61,2.27180874]
[1751968984179,0.26385824,659.81,658.6,2.27180874]
[1751968984583,0.26385824,659.81,658.61,2.27180874]
[1751968985281,0.26385824,659.81,658.63,2.27180874]
[1751968985480,0.26385824,659.81,658.64,2.27180874]
[1751968985683,0.26385824,659.81,658.62,2.27180874]
[1751968985881,0.26385824,659.81,658.6,2.27180874]
[1751968986080,0.26385824,659.81,658.61,2.27180874]
[1751968986482,0.26385824,659.81,658.62,2.27180874]
[1751968986684,0.26385824,659.81,658.61,2.27180874]
[1751968987885,0.26385824,659.81,658.53,2.27180874]
[1751968988486,0.26385824,659.81,658.54,2.27180874]
[1751968988685,0.26385824,659.81,658.55,2.27180874]
[1751968988885,0.26385824,659.81,658.56,2.27180874]
[1751968990282,0.26385824,659.81,658.57,2.27180874]
[1751968990486,0.26385824,659.81,658.58,2.27180874]
[1751968991686,0.26385824,659.81,658.6,2.27180874]
[1751968992389,0.26385824,659.81,658.61,2.27180874]
[1751968992884,0.26385824,659.81,658.67,2.27180874]
[1751968993282,0.26385824,659.81,658.66,2.27180874]
[1751968993483,0.26385824,659.81,658.7,2.27180874]
[1751968994387,0.26385824,659.81,658.72,2.27180874]
[1751968994884,0.26385824,659.81,658.71,2.27180874]
[1751968995487,0.26385824,659.81,658.73,2.27180874]
[1751968995788,0.26385824,659.81,658.74,2.27180874]
[1751968995984,0.26385824,659.81,658.75,2.27180874]
[1751968996184,0.26385824,659.81,658.73,2.27180874]
[1751968996388,0.26385824,659.81,658.76,2.27180874]
[1751968997490,0.26385824,659.81,658.79,2.27180874]
[1751968997889,0.26385824,659.81,658.81,2.27180874]
[1751968998489,0.26385824,659.81,658.84,2.27180874]
[1751968998692,0.26385824,659.81,658.83,2.27180874]
[1751968999392,0.26385824,659.81,658.88,2.27180874]
[1751968999594,0.26385824,659.81,658.87,2.27180874]
[1751968999994,0.26385824,659.81,658.88,2.27180874]
[1751969001398,0.26385824,659.81,658.9,2.27180874]
[1751969003397,0.26385824,659.81,658.84,2.27180874]
[1751969003997,0.26385824,659.81,658.86,2.27180874]
[1751969004292,0.26385824,659.81,658.87,2.27180874]
[1751969004497,0.26385824,659.81,658.88,2.27180874]
[1751969004794,0.26385824,659.81,658.87,2.27180874]
[1751969005503,0.26385824,659.81,658.88,2.27180874]
[1751969006092,0.26385824,659.81,658.87,2.27180874]
[1751969006497,0.26385824,659.81,658.88,2.27180874]
[1751969007197,0.26385824,659.81,658.86,2.27180874]
[1751969007594,0.26385824,659.81,658.87,2.27180874]
[1751969007997,0.26385824,659.81,658.86,2.27180874]
[1751969008397,0.26385824,659.81,658.88,2.27180874]
[1751969008895,0.26385824,659.81,658.86,2.27180874]
[1751969009300,0.26385824,659.81,658.89,2.27180874]
[1751969009500,0.26385824,659.81,658.9,2.27180874]
[1751969010301,1.96413637,659.81,658.91,2.27180874]
[1751969010503,1.70027813,659.8,658.92,2.27180874]
[1751969012198,1.70027813,659.8,658.93,2.27180874]
[1751969012497,1.96413637,659.81,658.92,2.27180874]
[1751969012798,1.96413637,659.81,658.9,2.27180874]
[1751969013297,0.26385824,659.81,658.89,2.27180874]
[1751969013699,0.26385824,659.81,658.88,2.27180874]
[1751969014802,0.26385824,659.81,658.89,2.27180874]
[1751969015903,0.26385824,659.81,658.88,2.27180874]
[1751969016103,0.26385824,659.81,658.87,2.27180874]
[1751969016303,0.26385824,659.81,658.89,2.27180874]
[1751969016801,1.96413637,659.81,658.91,2.27180874]
[1751969017304,1.96413637,659.81,658.93,2.27180874]
[1751969017305,1.70027813,659.8,658.93,2.27180874]
[1751969017604,1.70027813,659.79,658.94,2.27180874]
[1751969017902,1.96413637,659.81,658.91,2.27180874]
[1751969018501,1.96413637,659.81,658.9,2.27180874]
[1751969018702,1.96413637,659.81,658.89,2.27180874]
[1751969018904,0.26385824,659.81,658.89,2.27180874]
[1751969019602,0.26385824,659.81,658.88,2.27180874]
[1751969019905,0.26385824,659.81,658.87,2.27180874]
[1751969020402,0.26385824,659.81,658.9,2.27180874]
[1751969020602,1.70027813,659.6,658.81,2.27180874]
[1751969020801,0.26385824,659.81,658.93,2.27180874]
[1751969020802,1.70027813,659.72,658.93,2.27180874]
[1751969021206,0.26385824,659.81,658.8,2.27180874]
[1751969021207,1.70027813,659.61,658.8,2.27180874]
[1751969021603,1.70027813,659.61,658.79,2.27180874]
[1751969022007,1.70027813,659.6,658.81,2.27180874]
[1751969022307,1.70027813,659.62,658.8,2.27180874]
[1751969023106,1.70027813,659.61,658.8,2.27180874]
[1751969023408,1.70027813,659.61,658.76,2.27180874]
[1751969024508,1.70027813,659.62,658.73,2.27180874]
[1751969025210,1.70027813,659.62,658.75,2.27180874]
[1751969026111,1.70027813,659.63,658.73,2.27180874]
[1751969026313,1.70027813,659.63,658.72,2.27180874]
[1751969026611,2.26744608,659.8,657.63,7.9513306]
[1751969026612,1.70027813,659.64,658.7,2.27180874]
[1751969027107,1.70027813,659.65,658.69,2.27180874]
[1751969027312,1.70027813,659.65,658.68,2.27180874]
[1751969028311,1.70027813,659.66,658.66,2.27180874]
[1751969029313,1.70027813,659.67,658.65,2.27180874]
[1751969029609,1.70027813,659.67,657.43,0.26386425]
[1751969029610,1.70027813,659.67,658.64,2.27180874]
[1751969030410,1.70027813,659.67,658.61,2.27180874]
[1751969031108,1.70027813,659.67,658.62,2.27180874]
[1751969031412,1.70027813,659.67,658.61,2.27180874]
[1751969032113,1.70027813,659.68,658.6,2.27180874]
[1751969032310,0.26385824,659.81,657.62,5.67952186]
[1751969032311,1.70027813,659.67,658.61,2.27180874]
[1751969032511,1.70027813,659.66,658.63,2.27180874]
[1751969032812,1.70027813,659.67,658.61,2.27180874]
[1751969033411,1.70027813,659.67,658.6,2.27180874]
[1751969033616,1.70027813,659.68,658.59,2.27180874]
[1751969033812,1.70027813,659.68,658.58,2.27180874]
[1751969034212,1.70027813,659.69,658.57,2.27180874]
[1751969034415,1.70027813,659.69,658.56,2.27180874]
[1751969034613,1.70027813,659.69,658.57,2.27180874]
[1751969036119,1.70027813,659.69,658.56,2.27180874]
[1751969037220,1.70027813,659.69,658.55,2.27180874]
[1751969037821,1.70027813,659.7,658.54,2.27180874]
[1751969038318,1.70027813,659.69,658.55,2.27180874]
[1751969038616,1.70027813,659.7,658.55,2.27180874]
[1751969038817,1.70027813,659.67,658.52,2.27180874]
[1751969039317,1.70027813,659.67,658.51,2.27180874]
[1751969039721,1.70027813,659.67,658.52,2.27180874]
[1751969040422,1.70027813,659.67,658.53,2.27180874]
[1751969040618,1.70027813,659.66,658.54,2.27180874]
[1751969040824,1.70027813,659.67,658.52,2.27180874]
[1751969041121,1.70027813,659.67,658.51,2.27180874]
[1751969041318,1.70027813,659.68,658.51,2.27180874]
[1751969041823,1.70027813,659.67,658.52,2.27180874]
[1751969042020,1.70027813,659.66,658.54,2.27180874]
[1751969042524,1.70027813,659.66,658.55,2.27180874]
[1751969043026,1.70027813,659.66,658.54,2.27180874]
[1751969043322,1.70027813,659.67,658.52,2.27180874]
[1751969043925,1.70027813,659.68,658.51,2.27180874]
[1751969044322,1.70027813,659.68,658.49,2.27180874]
[1751969044726,1.70027813,659.68,658.48,2.27180874]
[1751969044927,1.70027813,659.67,658.48,2.27180874]
[1751969045325,1.70027813,659.68,658.48,2.27180874]
[1751969045630,1.70027813,659.67,658.49,2.27180874]
[1751969046129,1.70027813,659.67,658.48,2.27180874]
[1751969047226,1.70027813,659.68,658.48,2.27180874]
[1751969047430,1.70027813,659.67,658.5,2.27180874]
[1751969048328,1.70027813,659.67,658.29,3.40771311]
[1751969048329,1.70027813,659.67,658.49,2.27180874]
[1751969048728,1.70027813,659.63,658.57,2.27180874]
[1751969048932,1.70027813,659.63,658.58,2.27180874]
[1751969049329,1.70027813,659.64,658.58,2.27180874]
[1751969049628,1.70027813,659.64,658.56,2.27180874]
[1751969050434,1.70027813,659.65,658.55,2.27180874]
[1751969050633,1.70027813,659.65,658.53,2.27180874]
[1751969051029,0.26385824,659.81,657.58,5.67952186]
[1751969051030,1.70027813,659.66,658.52,2.27180874]
[1751969051430,1.70027813,659.64,658.5,2.27180874]
[1751969051834,1.70027813,659.64,658.51,2.27180874]
[1751969053035,1.70027813,659.64,658.5,2.27180874]
[1751969053232,1.70027813,659.65,658.49,2.27180874]
[1751969053632,1.70027813,659.65,658.48,2.27180874]
[1751969055537,1.70027813,659.65,658.49,2.27180874]
[1751969055937,1.70027813,659.64,658.5,2.27180874]
[1751969056332,1.70027813,659.63,658.5,2.27180874]
[1751969056637,1.70027813,659.63,658.52,2.27180874]
[1751969056837,1.70027813,659.64,658.5,2.27180874]
[1751969058132,0.26385824,659.81,658.49,2.27180874]
[1751969058337,1.6870414,659.62,658.48,2.27180874]
[1751969058837,1.6870414,659.62,658.49,2.27180874]
[1751969059433,1.6870414,659.62,658.48,2.27180874]
[1751969059937,0.26385824,659.81,657.49,5.67952186]
[1751969059938,1.6870414,659.61,658.5,2.27180874]
[1751969061637,1.6870414,659.61,657.54,5.67952186]
[1751969061638,1.6870414,659.61,658.51,2.27180874]
[1751969061840,1.6870414,659.6,658.52,2.27180874]
[1751969062035,1.6870414,659.6,658.54,2.27180874]
[1751969062237,1.6870414,659.6,658.36,3.40771311]
[1751969062238,1.6870414,659.59,658.53,2.27180874]
[1751969062839,1.6870414,659.58,658.53,2.27180874]
[1751969063237,1.6870414,659.58,658.35,3.40771311]
[1751969063238,1.6870414,659.57,658.55,2.27180874]
[1751969063439,1.6870414,659.58,658.53,2.27180874]
[1751969064442,1.6870414,659.59,658.52,2.27180874]
[1751969065237,1.6870414,659.59,658.51,2.27180874]
[1751969065442,1.6870414,659.59,658.52,2.27180874]
[1751969067039,1.6870414,659.59,658.5,2.27180874]
[1751969067343,1.6870414,659.59,658.31,3.40771311]
[1751969067344,1.6870414,659.6,658.49,2.27180874]
[1751969068146,1.6870414,659.6,658.5,2.27180874]
[1751969068345,1.6870414,659.59,658.5,2.27180874]
[1751969068740,1.6870414,659.58,658.52,2.27180874]
[1751969069041,1.6870414,659.59,658.5,2.27180874]
[1751969069247,1.6870414,659.66,658.35,2.27180874]
[1751969069447,1.6870414,659.64,658.34,2.27180874]
[1751969069645,1.6870414,659.68,658.38,2.27180874]
[1751969069850,1.6870414,659.67,658.4,2.27180874]
[1751969070551,1.6870414,659.64,658.38,2.27180874]
[1751969070747,1.6870414,659.64,658.39,2.27180874]
[1751969071152,1.6870414,659.64,658.49,2.27180874]
[1751969071848,1.6870414,659.64,658.5,2.27180874]
[1751969072048,1.6870414,659.63,658.52,2.27180874]
[1751969072448,1.6870414,659.63,658.53,2.27180874]
[1751969072649,1.6870414,659.64,658.54,2.27180874]
[1751969072846,1.6870414,659.64,658.55,2.27180874]
[1751969073048,1.6870414,659.63,658.56,2.27180874]
[1751969073248,1.6870414,659.63,658.57,2.27180874]
[1751969073647,1.6870414,659.63,658.58,2.27180874]
[1751969074150,1.6870414,659.63,658.57,2.27180874]
[1751969074353,1.6870414,659.63,658.58,2.27180874]
[1751969075350,1.6870414,659.62,658.6,2.27180874]
[1751969075753,2.24175745,659.8,657.43,0.26386425]
[1751969075754,1.6870414,659.61,658.61,2.27180874]
[1751969076150,1.6870414,659.61,658.62,2.27180874]
[1751969076349,1.6870414,659.6,658.63,2.27180874]
[1751969076759,1.6870414,659.6,658.61,2.27180874]
[1751969076954,1.6870414,659.6,658.62,2.27180874]
[1751969077555,1.6870414,659.59,658.63,2.27180874]
[1751969077856,1.6870414,659.59,658.62,2.27180874]
[1751969078149,1.6870414,659.59,658.42,3.40771311]
[1751969078150,1.6870414,659.6,658.61,2.27180874]
[1751969078351,1.6870414,659.59,658.62,2.27180874]
[1751969079050,1.6870414,659.58,658.63,2.27180874]
[1751969079251,1.6870414,659.57,658.64,2.27180874]
[1751969080152,1.6870414,659.58,658.61,2.27180874]
[1751969080356,1.6870414,659.57,658.63,2.27180874]
[1751969080854,1.6870414,659.56,658.64,2.27180874]
[1751969081051,1.6870414,659.55,658.72,2.27180874]
[1751969081255,1.6870414,659.59,658.93,2.27180874]
[1751969081551,1.6870414,659.6,658.92,2.27180874]
[1751969081756,1.6870414,659.59,658.94,2.27180874]
[1751969082156,1.6870414,659.59,657.43,0.26386425]
[1751969082157,1.6870414,659.59,658.93,2.27180874]
[1751969082753,1.6870414,659.62,658.88,2.27180874]
[1751969083256,1.6870414,659.63,658.88,2.27180874]
[1751969083653,1.6870414,659.63,658.89,2.27180874]
[1751969083953,1.6870414,659.72,658.94,2.27180874]
[1751969084157,1.6870414,659.73,658.93,2.27180874]
[1751969084354,1.6870414,659.74,658.92,2.27180874]
[1751969084758,1.6870414,659.69,658.88,2.27180874]
[1751969085053,1.6870414,659.73,658.94,2.27180874]
[1751969085257,1.6870414,659.74,658.93,2.27180874]
[1751969085959,1.6870414,659.76,658.92,2.27180874]
[1751969086355,1.6870414,659.77,658.89,2.27180874]
[1751969086760,1.6870414,659.8,658.84,2.27180874]
[1751969086958,1.6870414,659.79,658.88,2.27180874]
[1751969087158,0.26385824,659.81,658.95,2.27180874]
[1751969087356,0.26385824,659.81,658.93,2.27180874]
[1751969087761,0.26385824,659.81,658.95,2.27180874]
[1751969087958,1.6870414,659.91,658.89,2.27180874]
[1751969088158,1.6870414,659.85,659.08,2.27180874]
[1751969088361,1.6870414,659.87,659.06,2.27180874]
[1751969088660,1.6870414,659.98,659.18,2.27180874]
[1751969088860,2.65757488,660.11,659.24,2.27180874]
[1751969089058,0.26378624,660.15,659.23,2.27180874]
[1751969089361,0.26378624,660.15,657.43,0.26386425]
[1751969089362,0.26378624,660.15,659.17,2.27180874]
[1751969089661,0.26378624,660.15,659.16,2.27180874]
[1751969089959,0.26378624,660.15,658.96,3.40771311]
[1751969089960,1.41598702,660.25,659.15,2.27180874]
[1751969090157,1.00322809,660.24,659.15,2.27180874]
[1751969090358,0.26371728,660.23,659.1,2.27180874]
[1751969090563,0.26371728,660.23,659.08,2.27180874]
[1751969090859,0.26371728,660.23,659.1,2.27180874]
[1751969091262,0.26371728,660.23,659.06,2.27180874]
[1751969091561,0.26371728,660.23,659.12,2.27180874]
[1751969091765,0.26371728,660.23,659.1,2.27180874]
[1751969091964,0.26371728,660.23,659.09,2.27180874]
[1751969092164,0.26371728,660.23,659.05,2.27180874]
[1751969092361,0.26371728,660.23,659.04,2.27180874]
[1751969093263,0.26371728,660.23,659.0,2.27180874]
[1751969093758,0.26371728,660.23,658.99,2.27180874]
[1751969094159,0.26371728,660.23,658.97,2.27180874]
[1751969094363,0.26371728,660.23,658.96,2.27180874]
[1751969094860,0.26371728,660.23,658.97,2.27180874]
[1751969095064,0.26371728,660.23,658.98,2.27180874]
[1751969095261,0.26371728,660.23,658.94,2.27180874]
[1751969096166,0.26371728,660.23,658.9,2.27180874]
[1751969096561,0.26371728,660.23,658.88,2.27180874]
[1751969097161,0.26371728,660.23,658.86,2.27180874]
[1751969097465,0.26371728,660.23,658.85,2.27180874]
[1751969098265,0.26371728,660.23,658.82,2.27180874]
[1751969098665,0.26371728,660.23,658.84,2.27180874]
[1751969099364,0.26371728,660.23,658.82,2.27180874]
[1751969099567,0.26371728,660.23,658.81,2.27180874]
[1751969101068,0.26371728,660.23,658.82,2.27180874]
[1751969101464,0.26371728,660.23,658.81,2.27180874]
[1751969102066,0.26371728,660.23,658.79,2.27180874]
[1751969102365,0.26371728,660.23,658.8,2.27180874]
[1751969102569,0.26371728,660.23,658.82,2.27180874]
[1751969103366,0.26371728,660.23,658.81,2.27180874]
[1751969103769,0.26371728,660.23,658.8,2.27180874]
[1751969104167,0.26371728,660.23,658.82,2.27180874]
[1751969104769,0.26371728,660.23,658.81,2.27180874]
[1751969105467,0.26371728,660.23,658.83,2.27180874]
[1751969106571,0.26371728,660.23,658.79,2.27180874]
[1751969106766,0.26371728,660.23,658.72,2.27180874]
[1751969106966,0.26371728,660.23,658.73,2.27180874]
[1751969109169,0.26371728,660.23,658.72,2.27180874]
[1751969109373,0.26371728,660.23,658.74,2.27180874]
[1751969109667,0.26371728,660.23,658.72,2.27180874]
[1751969110473,0.26371728,660.23,658.7,2.27180874]
[1751969113073,0.26371728,660.23,658.69,2.27180874]
[1751969115172,0.26371728,660.23,658.7,2.27180874]
[1751969115374,0.26371728,660.23,658.73,2.27180874]
[1751969115773,0.26371728,660.23,658.74,2.27180874]
[1751969115974,0.26371728,660.23,658.76,2.27180874]
[1751969116278,0.26371728,660.23,658.77,2.27180874]
[1751969117380,0.26371728,660.23,658.76,2.27180874]
[1751969117777,0.26371728,660.23,658.74,2.27180874]
[1751969119281,0.26371728,660.23,658.75,2.27180874]
[1751969119478,0.26371728,660.23,658.79,2.27180874]
[1751969119981,0.26371728,660.23,658.78,2.27180874]
[1751969120181,0.26371728,660.23,658.75,2.27180874]
[1751969120377,0.26371728,660.23,658.76,2.27180874]
[1751969120981,0.26371728,660.23,658.77,2.27180874]
[1751969122083,0.26371728,660.23,658.76,2.27180874]
[1751969122280,0.26371728,660.23,658.77,2.27180874]
[1751969122886,0.26371728,660.23,658.78,2.27180874]
[1751969123182,0.26371728,660.23,658.79,2.27180874]
[1751969123387,0.26371728,660.23,658.8,2.27180874]
[1751969123982,0.26371728,660.23,658.76,2.27180874]
[1751969124688,0.26371728,660.23,658.74,2.27180874]
[1751969125585,0.26371728,660.23,658.77,2.27180874]
[1751969125786,0.26371728,660.23,658.76,2.27180874]
[1751969126286,1.6870414,660.21,658.75,2.27180874]
[1751969126889,1.6870414,660.2,658.78,2.27180874]
[1751969127388,1.6870414,660.2,658.79,2.27180874]
[1751969127584,1.6870414,660.2,658.78,2.27180874]
[1751969127784,1.6870414,660.2,658.77,2.27180874]
[1751969127987,0.26371728,660.23,657.43,0.26386425]
[1751969127988,1.6870414,660.21,658.74,2.27180874]
[1751969128190,1.6870414,660.21,658.75,2.27180874]
[1751969128392,1.6870414,660.19,658.74,2.27180874]
[1751969128790,1.6870414,660.18,658.75,2.27180874]
[1751969129392,1.6870414,660.18,658.76,2.27180874]
[1751969129988,1.6870414,660.17,658.79,2.27180874]
[1751969130189,1.6870414,660.16,658.8,2.27180874]
[1751969130586,1.6870414,660.19,658.58,2.27180874]
[1751969131193,1.6870414,660.18,658.59,2.27180874]
[1751969131392,1.6870414,660.18,658.6,2.27180874]
[1751969132292,1.6870414,660.17,658.61,2.27180874]
[1751969133395,1.6870414,660.16,658.63,2.27180874]
[1751969133594,1.6870414,660.16,658.64,2.27180874]
[1751969134193,1.6870414,660.16,658.65,2.27180874]
[1751969134396,1.6870414,660.15,658.66,2.27180874]
[1751969134595,1.6870414,660.13,658.63,2.27180874]
[1751969134791,1.6870414,660.12,658.62,2.27180874]
[1751969135292,1.6870414,660.09,658.61,2.27180874]
[1751969136095,1.6870414,660.05,658.71,2.27180874]
[1751969136292,1.6870414,660.05,658.72,2.27180874]
[1751969136497,1.6870414,660.04,658.73,2.27180874]
[1751969137394,1.6870414,660.04,658.75,2.27180874]
[1751969137795,1.6870414,660.04,658.56,3.40771311]
[1751969137796,1.6870414,660.02,658.79,2.27180874]